fUSD/lending_fUSD_20240329
["ID","MTS","AMOUNT","RATE_DAILY","PERIOD"]
[320929972,1711715487289,-635.83816276,0.00055616,120]
[320929973,1711715487298,-854.97253816,0.00055616,21]
[320929974,1711715487307,-986.78717071,0.00055616,120]
[320929975,1711715487317,-2139.60146684,0.00055616,120]
[320929976,1711715487326,-947.99327621,0.00055616,120]
[320929977,1711715487336,-922.26705377,0.00055616,120]
[320929978,1711715487345,-809.26203117,0.00055616,120]
[320929979,1711715487358,-555.52223871,0.00055616,120]
[320929980,1711715487367,-164.24511082,0.00055616,120]
[320929981,1711715487377,-1496.94379815,0.00055616,120]
[320929982,1711715487387,-1713.14546739,0.00055616,120]
[320929983,1711715487398,-652.79564585,0.00055616,120]
[320929984,1711715487408,-714.50589903,0.00055616,120]
[320929985,1711715487418,-525.34114077,0.00055616,120]
[320929986,1711715487427,-599.66524144,0.00055616,120]
[320929987,1711715487437,-513.40911274,0.00055616,120]
[320929988,1711715487447,-1171.29393641,0.00055616,120]
[320929989,1711715487456,-594.67260479,0.00055616,120]
[320929990,1711715487466,-2019.64760939,0.00055616,120]
[320929991,1711715487475,-525.77193344,0.00055616,120]
[320929992,1711715487486,-556.61998862,0.00055616,120]
[320929993,1711715487496,-699.8000101,0.00055616,120]
[320929994,1711715487505,-151.0,0.00055616,120]
[320929995,1711715487514,-314.82,0.00055625,2]
[320929996,1711715487524,-161.032921,0.00055748,114]
[320929997,1711715487533,-308.43333333,0.00055836,120]
[320929998,1711715487542,-314.82,0.0005585,2]
[320929999,1711715487552,-500.0,0.0005589,120]
[320930000,1711715487561,-1412.38,0.0005589,120]
[320930001,1711715487570,-240.64720123,0.00055918,105]
[320930002,1711715487579,-377.0,0.00055934,30]
[320930003,1711715487589,-305.0,0.00055934,30]
[320930004,1711715487597,-200.0,0.00055987,3]
[320930005,1711715487607,-200.0,0.00055999,120]
[320930006,1711715487616,-500.0,0.00055999,120]
[320930007,1711715487625,-100000.0,0.00056,56]
[320930008,1711715487634,-150.0,0.00056,60]
[320930009,1711715487643,-601.770277,0.00056,120]
[320930010,1711715487652,-260.0,0.00056,120]
[320930011,1711715487662,-1072.53604421,0.00056,120]
[320930012,1711715487671,-152.65,0.000561,8]
[320930013,1711715487680,-152.65,0.000561,8]
[320930014,1711715487689,-152.65,0.000561,8]
[320930015,1711715487699,-152.65,0.000561,8]
[320930016,1711715487708,-152.65,0.000561,8]
[320930017,1711715487717,-152.65,0.000561,8]
[320930018,1711715487726,-152.65,0.000561,8]
[320930019,1711715487737,-152.65,0.000561,8]
[320930020,1711715487747,-152.65,0.000561,8]
[320930021,1711715487756,-152.65,0.000561,8]
[320930022,1711715487765,-152.65,0.000561,8]
[320930023,1711715487775,-3455.57,0.000561,8]
[320930024,1711715487785,-3455.57,0.000561,8]
[320930025,1711715487795,-3455.57,0.000561,8]
[320930026,1711715487805,-3455.57,0.000561,8]
[320930027,1711715487814,-3455.57,0.000561,8]
[320930028,1711715487824,-3455.57,0.000561,8]
[320930029,1711715487834,-3455.57,0.000561,8]
[320930030,1711715487843,-3455.57,0.000561,8]
[320930031,1711715487853,-3455.57,0.000561,8]
[320930032,1711715487862,-3455.57,0.000561,8]
[320930033,1711715487872,-3455.57,0.000561,8]
[320930034,1711715487882,-3455.57,0.000561,8]
[320930035,1711715487891,-3455.57,0.000561,8]
[320930036,1711715487901,-3455.57,0.000561,8]
[320930037,1711715487910,-3455.57,0.000561,8]
[320930038,1711715487919,-3455.57,0.000561,8]
[320930039,1711715487929,-3455.57,0.000561,8]
[320930040,1711715487938,-3455.57,0.000561,8]
[320930041,1711715487948,-3455.57,0.000561,8]
[320930042,1711715487957,-3455.57,0.000561,8]
[320930043,1711715487966,-1009.3,0.0005613,2]
[320930044,1711715487976,-157.032919,0.00056148,112]
[320930045,1711715487988,-500.0,0.00056164,120]
[320930046,1711715487997,-819.73,0.00056164,120]
[320930047,1711715488007,-819.73,0.00056164,120]
[320930048,1711715488020,-819.73,0.00056164,120]
[320930049,1711715488031,-819.73,0.00056164,120]
[320930050,1711715488040,-819.73,0.00056164,120]
[320930051,1711715488051,-819.73,0.00056164,120]
[320930052,1711715488063,-819.73,0.00056164,120]
[320930053,1711715488073,-819.73,0.00056164,120]
[320930054,1711715488084,-819.73,0.00056164,120]
[320930055,1711715488094,-819.73,0.00056164,120]
[320930056,1711715488106,-819.73,0.00056164,120]
[320930057,1711715488116,-819.73,0.00056164,120]
[320930058,1711715488127,-819.73,0.00056164,120]
[320930059,1711715488137,-819.73,0.00056164,120]
[320930060,1711715488146,-819.73,0.00056164,120]
[320930061,1711715488156,-819.73,0.00056164,120]
[320930062,1711715488166,-819.73,0.00056164,120]
[320930063,1711715488176,-819.73,0.00056164,120]
[320930064,1711715488185,-819.73,0.00056164,120]
[320930065,1711715488194,-819.73,0.00056164,120]
[320930066,1711715488203,-819.73,0.00056164,120]
[320930067,1711715488212,-819.73,0.00056164,120]
[320930068,1711715488221,-819.73,0.00056164,120]
[320930069,1711715488230,-819.93210723,0.00056164,120]
[320930070,1711715488241,-500.0,0.00056164,120]
[320930071,1711715488250,-500.0,0.00056164,120]
[320930072,1711715488259,-500.0,0.00056164,120]
[320930073,1711715488268,-500.0,0.00056164,120]
[320930074,1711715488277,-500.0,0.00056164,120]
[320930075,1711715488285,-500.0,0.00056164,120]
[320930076,1711715488294,-500.0,0.00056164,120]
[320930077,1711715488303,-500.0,0.00056164,120]
[320930078,1711715488312,-500.0,0.00056164,120]
[320930079,1711715488321,-500.0,0.00056164,120]
[320930080,1711715488330,-500.0,0.00056164,120]
[320930081,1711715488339,-500.0,0.00056164,120]
[320930082,1711715488348,-500.0,0.00056164,120]
[320930083,1711715488357,-500.0,0.00056164,120]
[320930084,1711715488367,-500.0,0.00056164,120]
[320930085,1711715488376,-500.0,0.00056164,120]
[320930086,1711715488385,-361.05348029,0.00056164,120]
[320930087,1711715488393,-2000.0,0.000562,120]
[320930088,1711715488402,-431.19340125,0.000562,120]
[320930089,1711715488411,-464.73441725,0.0005627,30]
[320930090,1711715488420,-157.032921,0.00056348,116]
[320930091,1711715488429,-151.212305,0.000564,7]
[320930092,1711715488438,-500.0,0.00056438,120]
[320930093,1711715488447,-308.43333333,0.00056438,120]
[320930094,1711715488456,-161.032921,0.00056448,115]
[320930095,1711715488465,-260.0,0.000565,120]
[320930096,1711715488474,-2366.262656,0.00056502,120]
[320930097,1711715488483,-377.0,0.00056505,30]
[320930098,1711715488492,-305.0,0.00056505,30]
[320930099,1711715488501,-161.596106,0.00056541,30]
[320930100,1711715488510,-314.82,0.000566,2]
[320930101,1711715488519,-152.0,0.0005668,5]
[320930102,1711715488528,-500.0,0.00056712,120]
[320930103,1711715488537,-1412.38,0.00056712,120]
[320930104,1711715488546,-151.0,0.0005674,120]
[320930105,1711715488555,-161.032921,0.00056748,115]
[320930106,1711715488565,-194.577524,0.000568,30]
[320930107,1711715488574,-216.404164,0.000568,30]
[320930108,1711715488584,-150.0,0.00056804,120]
[320930109,1711715488593,-314.82,0.00056825,2]
[320930110,1711715488602,-172.64311964,0.0005689,120]
[320930111,1711715488611,-500.0,0.000569,120]
[320930112,1711715488621,-151.0,0.000569,7]
[320930113,1711715488630,-500.0,0.00056986,120]
[320930114,1711715488640,-1000.0,0.00056986,120]
[320930115,1711715488649,-200.0,0.00056987,3]
[320930116,1711715488658,-200.0,0.00056999,120]
[320930117,1711715488667,-150.0,0.00057,60]
[320930118,1711715488676,-450.0,0.00057,120]
[320930119,1711715488685,-260.0,0.00057,120]
[320930120,1711715488695,-262.35,0.00057,30]
[320930121,1711715488704,-3088.37126978,0.00057024,120]
[320930122,1711715488714,-1934.20250452,0.00057024,120]
[320930123,1711715488724,-787.03857535,0.00057024,120]
[320930124,1711715488734,-1830.81952713,0.00057024,120]
[320930125,1711715488744,-308.43333333,0.00057041,120]
[320930126,1711715488753,-3715.09,0.00057049,120]
[320930127,1711715488762,-377.0,0.00057076,30]
[320930128,1711715488771,-217.95874234,0.00057076,30]
[320930129,1711715488782,-557.48153762,0.00057076,30]
[320930130,1711715488790,-305.0,0.00057076,30]
[320930131,1711715488799,-547.0108021,0.00057076,30]
[320930132,1711715488809,-1009.3,0.0005713,2]
[320930133,1711715488821,-157.032919,0.00057148,113]
[320930134,1711715488830,-272.84,0.00057205,120]
[320930135,1711715488837,-500.0,0.0005726,120]
[320930136,1711715488846,-1000.0,0.0005726,120]
[320930137,1711715488855,-500.0,0.00057277,34]
[320930138,1711715488864,-157.032921,0.00057348,117]
[320930139,1711715488873,-1041.92,0.00057428,2]
[320930140,1711715488882,-173.032921,0.00057448,115]
[320930141,1711715488891,-2000.0,0.000575,120]
[320930142,1711715488900,-260.0,0.000575,120]
[320930143,1711715488910,-194.22814667,0.000575,30]
[320930144,1711715488919,-500.0,0.000575,120]
[320930145,1711715488928,-3088.37126978,0.00057522,120]
[320930146,1711715488938,-1934.20250452,0.00057522,120]
[320930147,1711715488947,-787.03857535,0.00057522,120]
[320930148,1711715488955,-1830.81952713,0.00057522,120]
[320930149,1711715488965,-500.0,0.00057534,120]
[320930150,1711715488974,-666.0,0.00057534,120]
[320930151,1711715488985,-1000.0,0.00057534,120]
[320930152,1711715488994,-1412.38,0.00057534,120]
[320930153,1711715489003,-2800.0,0.00057534,120]
[320930154,1711715489016,-314.82,0.00057575,2]
[320930155,1711715489025,-308.43333333,0.00057644,120]
[320930156,1711715489034,-377.0,0.00057646,30]
[320930157,1711715489044,-305.0,0.00057646,30]
[320930158,1711715489054,-599.50654082,0.00057652,2]
[320930159,1711715489063,-240.64720123,0.00057696,112]
[320930160,1711715489072,-1009.3,0.00057745,2]
[320930161,1711715489080,-161.032921,0.00057748,116]
[320930162,1711715489091,-314.82,0.000578,2]
[320930163,1711715489101,-500.0,0.00057808,120]
[320930164,1711715489109,-1000.0,0.00057808,120]
[320930165,1711715489118,-9500.00000559,0.0005786,21]
[320930166,1711715489131,-151.0,0.00057863,120]
[320930167,1711715489140,-200.0,0.00057987,2]
[320930168,1711715489149,-5575.0,0.0005799,30]
[320930169,1711715489159,-100000.0,0.00058,58]
[320930170,1711715489168,-150.0,0.00058,60]
[320930171,1711715489177,-260.0,0.00058,120]
[320930172,1711715489186,-200.0,0.00058,120]
[320930173,1711715489195,-15000.0,0.00058,120]
[320930174,1711715489204,-3088.37126978,0.00058021,120]
[320930175,1711715489213,-1934.20250452,0.00058021,120]
[320930176,1711715489222,-787.03857535,0.00058021,120]
[320930177,1711715489231,-1830.81952713,0.00058021,120]
[320930178,1711715489245,-533.12366868,0.00058082,120]
[320930179,1711715489255,-1000.0,0.00058082,120]
[320930180,1711715489264,-157.032919,0.00058148,114]
[320930181,1711715489273,-377.0,0.00058217,30]
[320930182,1711715489282,-305.0,0.00058217,30]
[320930183,1711715489291,-308.43333333,0.00058247,120]
[320930184,1711715489300,-157.032921,0.00058348,118]
[320930185,1711715489309,-1000.0,0.00058356,120]
[320930186,1711715489319,-1412.38,0.00058356,120]
[320930187,1711715489328,-173.032921,0.00058448,117]
[320930188,1711715489337,-260.0,0.000585,120]
[320930189,1711715489346,-3088.37126978,0.0005852,120]
[320930190,1711715489355,-1934.20250452,0.0005852,120]
[320930191,1711715489364,-787.03857535,0.0005852,120]
[320930192,1711715489373,-1830.81952713,0.0005852,120]
[320930193,1711715489382,-1022.99,0.00058531,120]
[320930194,1711715489391,-3215.18783717,0.00058536,37]
[320930195,1711715489401,-314.82,0.0005855,2]
[320930196,1711715489409,-1000.0,0.0005863,120]
[320930197,1711715489418,-3443.43,0.0005867,120]
[320930198,1711715489427,-13984.7010959,0.0005874,15]
[320930199,1711715489437,-1009.3,0.00058745,2]
[320930200,1711715489446,-161.032921,0.00058748,117]
[320930201,1711715489455,-314.82,0.00058775,2]
[320930202,1711715489464,-377.0,0.00058788,30]
[320930203,1711715489473,-305.0,0.00058788,30]
[320930204,1711715489482,-171.21718241,0.00058798,115]
[320930205,1711715489494,-308.43333333,0.00058849,120]
[320930206,1711715489503,-196.37226732,0.000589,120]
[320930207,1711715489512,-1000.0,0.00058904,120]
[320930208,1711715489521,-151.0,0.00058986,120]
[320930209,1711715489530,-140576.52564039,0.00059,120]
[320930210,1711715489603,-159636.20814787,0.00059,120]
[320930211,1711715489613,-300.37127334,0.00059,30]
[320930212,1711715489623,-150.0,0.00059,60]
[320930213,1711715489632,-450.0,0.00059,120]
[320930214,1711715489641,-281.92117151,0.00059,120]
[320930215,1711715489650,-260.0,0.00059,120]
[320930216,1711715489659,-1000.0,0.00059,120]
[320930217,1711715489669,-20000.0,0.00059,120]
[320930218,1711715489678,-10619.80431823,0.00059,5]
[320930219,1711715489687,-262.35,0.00059,30]
[320930220,1711715489697,-306.38,0.00059,30]
[320930221,1711715489706,-151.69724403,0.00059006,78]
[320930222,1711715489715,-3088.37126978,0.00059019,120]
[320930223,1711715489724,-1934.20250452,0.00059019,120]
[320930224,1711715489736,-787.03857535,0.00059019,120]
[320930225,1711715489746,-1830.81952713,0.00059019,120]
[320930226,1711715489755,-567.92749594,0.0005909,2]
[320930227,1711715489765,-161.032921,0.00059148,115]
[320930228,1711715489774,-1000.0,0.00059178,120]
[320930229,1711715489783,-1412.38,0.00059178,120]
[320930230,1711715489792,-157.032921,0.00059348,119]
[320930231,1711715489802,-1009.3,0.0005936,2]
[320930232,1711715489811,-157.032914,0.00059448,118]
[320930233,1711715489820,-1000.0,0.00059452,120]
[320930234,1711715489829,-308.43333333,0.00059452,120]
[320930235,1711715489847,-240.64720123,0.00059473,118]
[320930236,1711715489856,-206.87406453,0.0005949,120]
[320930237,1711715489865,-168.88817561,0.00059498,116]
[320930238,1711715489874,-260.0,0.000595,120]
[320930239,1711715489883,-150.0,0.000595,40]
[320930240,1711715489892,-3088.37126978,0.00059517,120]
[320930241,1711715489901,-1934.20250452,0.00059517,120]
[320930242,1711715489910,-787.03857535,0.00059517,120]
[320930243,1711715489919,-1830.81952713,0.00059517,120]
[320930244,1711715489928,-314.82,0.00059525,2]
[320930245,1711715489937,-1041.92,0.00059692,2]
[320930246,1711715489947,-151.032912,0.00059748,118]
[320930247,1711715489955,-314.82,0.0005975,2]
[320930248,1711715489965,-173.032708,0.00059798,117]
[320930249,1711715489974,-1313.15,0.000598,45]
[320930250,1711715489986,-100000.0,0.0005987,120]
[320930251,1711715489998,-272.84,0.00059945,120]
[320930252,1711715490008,-40827.88944674,0.0005998,30]
[320930253,1711715490017,-179.12658074,0.0005998,120]
[320930254,1711715490026,-200.0,0.00059987,3]
[320930255,1711715490036,-189.656471,0.00059999,120]
[320930256,1711715490046,-1412.38,0.00059999,120]
[320930257,1711715490056,-100000.0,0.0006,60]
[320930258,1711715490065,-3196.38912452,0.0006,90]
[320930259,1711715490075,-517.66081564,0.0006,90]
[320930260,1711715490084,-988.84118584,0.0006,7]
[320930261,1711715490093,-155.64218997,0.0006,120]
[320930262,1711715490102,-400.0,0.0006,7]
[320930263,1711715490111,-522.53010782,0.0006,30]
[320930264,1711715490121,-500.0,0.0006,7]
[320930265,1711715490130,-4228.96,0.0006,120]
[320930266,1711715490138,-30000.0,0.0006,120]
[320930267,1711715490148,-30000.0,0.0006,120]
[320930268,1711715490157,-30000.0,0.0006,120]
[320930269,1711715490165,-231.81414888,0.0006,120]
[320930270,1711715490174,-27928.45040492,0.0006,2]
[320930271,1711715490183,-150.0,0.0006,120]
[320930272,1711715490193,-150.0,0.0006,120]
[320930273,1711715490202,-1000.0,0.0006,2]
[320930274,1711715490210,-2000.0,0.0006,120]
[320930275,1711715490219,-1090.40526408,0.0006,120]
[320930276,1711715490229,-260.0,0.0006,120]
[320930277,1711715490240,-503.3992,0.0006,120]
[320930278,1711715490250,-15000.0,0.0006,120]
[320930279,1711715490259,-100000.0,0.0006,14]
[320930280,1711715490268,-158.92564101,0.0006,120]
[320930281,1711715490277,-22900.39132027,0.0006,120]
[320930282,1711715490286,-5103.13512085,0.0006,120]
[320930283,1711715490295,-2411.1330331,0.0006,14]
[320930284,1711715490304,-1000.0,0.0006,120]
[320930285,1711715490313,-500.0,0.0006,60]
[320930286,1711715490323,-500.0,0.0006,60]
[320930287,1711715490332,-500.0,0.0006,60]
[320930288,1711715490341,-500.0,0.0006,60]
[320930289,1711715490350,-500.0,0.0006,60]
[320930290,1711715490359,-500.0,0.0006,60]
[320930291,1711715490368,-500.0,0.0006,60]
[320930292,1711715490377,-500.0,0.0006,60]
[320930293,1711715490386,-500.0,0.0006,60]
[320930294,1711715490395,-500.0,0.0006,60]
[320930295,1711715490405,-500.0,0.0006,60]
[320930296,1711715490414,-595.0,0.0006,60]
[320930297,1711715490423,-10000.0,0.0006,4]
[320930298,1711715490432,-500.0,0.0006,60]
[320930299,1711715490441,-500.0,0.0006,60]
[320930300,1711715490450,-500.0,0.0006,60]
[320930301,1711715490459,-500.0,0.0006,60]
[320930302,1711715490468,-500.0,0.0006,60]
[320930303,1711715490477,-500.0,0.0006,60]
[320930304,1711715490488,-500.0,0.0006,60]
[320930305,1711715490496,-646.0,0.0006,60]
[320930306,1711715490505,-8900.09474573,0.0006,120]
[320930307,1711715490514,-160.87430637,0.0006,60]
[320930308,1711715490523,-629932.72787443,0.0006,60]
[320930309,1711715490533,-1543.70534365,0.0006,120]
[320930310,1711715490541,-797.45270005,0.0006,120]
[320930311,1711715490551,-1513.99498218,0.0006,120]
[320930312,1711715490560,-1112.13171766,0.0006,108]
[320930313,1711715490569,-12667.83644063,0.0006,120]
[320930314,1711715490578,-4007.24687612,0.0006,14]
[320930315,1711715490586,-999.999999,0.0006,30]
[320930316,1711715490595,-280440.89711642,0.0006,60]
[320930317,1711715490604,-15109.33823447,0.0006,108]
[320930318,1711715490613,-10923.98,0.0006,120]
[320930319,1711715490622,-3088.37126978,0.00060016,120]
[320930320,1711715490631,-1934.20250452,0.00060016,120]
[320930321,1711715490640,-787.03857535,0.00060016,120]
[320930322,1711715490649,-1830.81952713,0.00060016,120]
[320930323,1711715490658,-308.43333333,0.00060055,120]
[320930324,1711715490667,-151.0,0.0006011,120]
[320930325,1711715490676,-157.032919,0.00060148,119]
[320930326,1711715490685,-666.0,0.00060273,120]
[320930327,1711715490694,-718.37,0.00060274,120]
[320930328,1711715490703,-2313.54,0.00060274,120]
[320930329,1711715490712,-1999.54,0.00060274,120]
[320930330,1711715490720,-2000.0,0.000603,120]
[320930331,1711715490728,-157.032921,0.00060348,120]
[320930332,1711715490739,-30558.84,0.00060358,6]
[320930333,1711715490749,-59156.26,0.00060358,6]
[320930334,1711715490759,-215.58832968,0.00060358,6]
[320930335,1711715490772,-4530.17167032,0.00060358,6]
[320930336,1711715490781,-2271.26627062,0.00060358,6]
[320930337,1711715490793,-8537.04372938,0.00060358,6]
[320930338,1711715490802,-1009.3,0.0006036,120]
[320930339,1711715490812,-157.032914,0.00060448,119]
[320930340,1711715490821,-260.0,0.000605,120]
[320930341,1711715490836,-5193.92266169,0.000605,120]
[320930342,1711715490846,-509.154793,0.000605,120]
[320930343,1711715490856,-3088.37126978,0.00060515,120]
[320930344,1711715490865,-1934.20250452,0.00060515,120]
[320930345,1711715490874,-39.81722176,0.00060515,120]
[320930346,1711715490886,-747.22135359,0.00060515,120]
[320930347,1711715490895,-1830.81952713,0.00060515,120]
[320930348,1711715490905,-599.50654082,0.0006063,2]
[320930349,1711715490915,-308.43333333,0.00060658,120]
[320930350,1711715490925,-314.82,0.00060725,120]
[320930351,1711715490935,-151.032912,0.00060748,119]
[320930352,1711715490945,-1412.38,0.00060821,120]
[320930353,1711715490955,-5531.94145222,0.00060844,120]
[320930354,1711715490965,-3996.08928051,0.0006096,6]
[320930355,1711715490977,-378.49331235,0.0006096,6]
[320930356,1711715490991,-619.18740714,0.0006096,6]
[320930357,1711715491001,-282.00890324,0.0006096,6]
[320930358,1711715491017,-664.88675611,0.0006096,6]
[320930359,1711715491066,-1172.87854124,0.0006096,6]
[320930360,1711715491078,-2873.99579941,0.0006096,6]
[320930361,1711715491089,-315.99945966,0.0006096,6]
[320930362,1711715491102,-4677.77054034,0.0006096,6]
[320930363,1711715491111,-4377.96166166,0.0006096,6]
[320930364,1711715491123,-615.80833834,0.0006096,6]
[320930365,1711715491133,-2516.06638166,0.0006096,6]
[320930366,1711715491156,-409.09962659,0.00049863,120]
[320930367,1711715491174,-90.90037341,0.00049863,120]
[320930368,1711715491183,-547.64049327,0.00052328,120]
[320930369,1711715491194,-285.49172499,0.00052328,120]
[320930370,1711715491210,-500.0,0.00051506,120]
[320930371,1711715491223,-278.12778174,0.00052328,120]
[320930372,1711715491232,-28.53900191,0.0006096,6]
[320930373,1711715491245,-362.69102512,0.0006096,6]
[320930374,1711715491566,-651.54000006,0.00027123,2]
[320930375,1711715491578,-1050.08,0.00027123,2]
[320930376,1711715491781,-636.03403185,0.00027123,2]
[320930377,1711715491794,-1079.02596809,0.00027123,2]
[320930378,1711715491803,-500.0,0.00027184,2]
[320930379,1711715491813,-172.059,0.00047111,2]
[320930380,1711715491822,-107.46224413,0.00049315,120]
[320930381,1711715491837,-455.73775587,0.00049315,120]
[320930382,1711715491846,-500.0,0.00049315,120]
[320930383,1711715491856,-151.0,0.00049315,120]
[320930384,1711715491865,-151.0,0.00049315,120]
[320930385,1711715491874,-151.0,0.00049315,120]
[320930386,1711715491884,-151.0,0.00049315,120]
[320930387,1711715491893,-227.894689,0.00049315,120]
[320930388,1711715491903,-493.06755513,0.00049589,120]
[320930389,1711715491918,-6.93244487,0.00049589,120]
[320930390,1711715491927,-463.32450479,0.00049589,120]
[320930391,1711715491945,-99.87549521,0.00049589,120]
[320930392,1711715491954,-500.0,0.00049589,120]
[320930393,1711715491964,-151.0,0.00049589,120]
[320930394,1711715491973,-598.69334911,0.00049863,120]
[320930395,1711715491985,-500.0,0.00049863,120]
[320930396,1711715491997,-563.2,0.00049863,120]
[320930397,1711715492007,-212.876717,0.000499,120]
[320930398,1711715492016,-500.0,0.00050136,120]
[320930399,1711715492026,-500.0,0.00050136,120]
[320930400,1711715492035,-563.2,0.00050136,120]
[320930401,1711715492044,-315.18796442,0.0005041,120]
[320930402,1711715492058,-184.81203558,0.0005041,120]
[320930403,1711715492069,-649.46978346,0.0005041,120]
[320930404,1711715492079,-563.2,0.0005041,120]
[320930405,1711715492091,-500.0,0.00050684,120]
[320930406,1711715492101,-563.2,0.00050684,120]
[320930407,1711715492110,-500.0,0.00050958,120]
[320930408,1711715492120,-563.2,0.00050958,120]
[320930409,1711715492131,-500.0,0.00051232,120]
[320930410,1711715492141,-563.2,0.00051232,120]
[320930411,1711715492151,-160.3757938,0.00051506,120]
[320930412,1711715492163,-339.6242062,0.00051506,120]
[320930413,1711715492173,-563.2,0.00051506,120]
[320930414,1711715492183,-500.0,0.0005178,120]
[320930415,1711715492193,-500.0,0.0005178,120]
[320930416,1711715492202,-553.00463194,0.0005178,120]
[320930417,1711715492215,-10.19536806,0.0005178,120]
[320930418,1711715492225,-500.0,0.00052054,120]
[320930419,1711715492236,-500.0,0.00052054,120]
[320930420,1711715492246,-563.2,0.00052054,120]
[320930421,1711715492255,-500.0,0.00052328,120]
[320930422,1711715492266,-500.0,0.00052328,120]
[320930423,1711715492276,-563.2,0.00052328,120]
[320930424,1711715492286,-1111.26,0.00052602,120]
[320930425,1711715492296,-500.0,0.00052602,120]
[320930426,1711715492306,-239.06121144,0.00052602,120]
[320930427,1711715492315,-563.2,0.00052602,120]
[320930428,1711715492325,-1111.26,0.00052876,120]
[320930429,1711715492335,-500.0,0.00052876,120]
[320930430,1711715492345,-151.0,0.000529,120]
[320930431,1711715492355,-151.0,0.00053,120]
[320930432,1711715492364,-24.6234205,0.0005315,120]
[320930433,1711715492425,-892.6765795,0.0005315,120]
[320930434,1711715492434,-1111.26,0.0005315,120]
[320930435,1711715492443,-500.0,0.0005315,120]
[320930436,1711715492452,-309.4239705,0.00053424,120]
[320930437,1711715492520,-607.8760295,0.00053424,120]
[320930438,1711715492531,-1111.26,0.00053424,120]
[320930439,1711715492540,-500.0,0.00053424,120]
[320930440,1711715492550,-917.3,0.00053698,120]
[320930441,1711715492559,-1111.26,0.00053698,120]
[320930442,1711715492568,-500.0,0.00053698,120]
[320930443,1711715492578,-739.52,0.00053972,120]
[320930444,1711715492588,-917.3,0.00053972,120]
[320930445,1711715492597,-1111.26,0.00053972,120]
[320930446,1711715492606,-553.81712814,0.00053972,120]
[320930447,1711715492616,-739.52,0.00054246,120]
[320930448,1711715492626,-917.3,0.00054246,120]
[320930449,1711715492635,-1111.26,0.00054246,120]
[320930450,1711715492645,-739.52,0.0005452,120]
[320930451,1711715492654,-917.3,0.0005452,120]
[320930452,1711715492664,-1111.26,0.0005452,120]
[320930453,1711715492674,-739.52,0.00054794,120]
[320930454,1711715492683,-917.3,0.00054794,120]
[320930455,1711715492693,-1111.26,0.00054794,120]
[320930456,1711715492702,-739.52,0.00055068,120]
[320930457,1711715492711,-917.3,0.00055068,120]
[320930458,1711715492721,-1111.26,0.00055068,120]
[320930459,1711715492730,-739.52,0.00055342,120]
[320930460,1711715492745,-917.3,0.00055342,120]
[320930461,1711715492754,-1111.26,0.00055342,120]
[320930462,1711715492766,-739.68292734,0.00055616,120]
[320930463,1711715492777,-507.10243168,0.00055616,120]
[320930464,1711715492802,-410.22706771,0.00055616,120]
[320930465,1711715492813,-1111.49958797,0.00055616,120]
[320930466,1711715492824,-2086.47359131,0.0006096,6]
[320930467,1711715492839,-4993.77,0.0006096,6]
[320930468,1711715492852,-2602.17535864,0.0006096,6]
[320930469,1711715492868,-2391.59464136,0.0006096,6]
[320930470,1711715492879,-4993.77,0.0006096,6]
[320930471,1711715492889,-4993.77,0.0006096,6]